{"text_format":"1","workbook":"xlsx","n_sheets":1,"sheets":["SHOOTER LIST"],"not_rendered":{"charts":0,"images":0,"macros":1,"external_links":0,"defined_names":3,"comments":0,"pivot_tables":0},"unopened":[],"bounds":{"document_bytes":16777216,"sheet_cells":100000,"rows_first":2000,"rows_last":500,"rows_between":2000,"halvings":0,"cell_chars":16384,"cell_head_chars":4096},"cells_cut":0,"cells_raw":0,"read":"whole","date_system":"1900"}

{"sheet":"SHOOTER LIST","index":0,"n_rows":207,"n_cols":33,"rows_kept":207,"cut":false,"hidden":false,"merged":[[4,7,4,8],[4,9,4,10],[4,11,4,12],[4,13,4,14]]}
["SHOOTER DATA LIST"]
[]
[]
[]
[null,null,null,null,null,null,null,"GEM CITY",null,"DAVE'S",null,"PRESQUE ISLE",null,"FINAL TOTAL"]
["SEQ#","LAST NAME","FIRST NAME","ADDRESS","QUALIFIED","MONEY","CLASS","SCORE","X'S","SCORE","X'S","SCORE","X'S","SCORE","X'S",null,null,null,null,null,null,null,null,null,null,null,null,null,null,null,null,"CLASS LIST"]
[6,"Mroczlcowski","Don","1115 walbridge rd erie pa 16511","YES",null,"AHC",null,null,296,9,null,null,{"$f":"SUM(H7,J7,L7)","v":296},{"$f":"SUM(I7,K7,M7)","v":9}]
[7,"Ingerson","Dave      sr","po box 105 celoron ny 14720","YES",null,"AHC",null,null,285,8,null,null,285,8,null,null,null,null,null,null,null,null,null,null,null,null,null,null,null,null,"AHC","YES"]
[8,"Winslow","Chris","327 Park Ave Warren, PA 16365","YES",null,"AHC",273,4,271,8,null,null,544,12,null,null,null,null,null,null,null,null,null,null,null,null,null,null,null,null,"CUB"]
[2,"Burch","Travis","304 Edgewood Pl Warren PA 16365","YES",null,"AHC",288,12,null,null,null,null,288,12,null,null,null,null,null,null,null,null,null,null,null,null,null,null,null,null,"FBH"]
[1,"Wurst III","Donnie","255 Moore Road Waterford PA 16441","YES",null,"CUB",250,3,314,16,null,null,564,19,null,null,null,null,null,null,null,null,null,null,null,null,null,null,null,null,"FBO"]
[3,"humes","mitchell","24628 cherryhill rd cambridge springs 16403","yes",null,"CUB",231,3,null,null,null,null,231,3,null,null,null,null,null,null,null,null,null,null,null,null,null,null,null,null,"FHC"]
[4,"WILSON","MALLORY","717 OLD ASH RD MERCER PA 16137","YES",null,"FHC",null,null,314,16,null,null,314,16,null,null,null,null,null,null,null,null,null,null,null,null,null,null,null,null,"FSR"]
[5,"Senita","Jenna","p.o. box 391 jefferson oh 44047","YES","YES","FHC",287,5,306,10,null,null,593,15,null,null,null,null,null,null,null,null,null,null,null,null,null,null,null,null,"FY"]
[9,"Wurst","Sally","255 Moore Road Waterford PA 16441","YES","YES","FHC",247,5,275,5,null,null,522,10,null,null,null,null,null,null,null,null,null,null,null,null,null,null,null,null,"HC"]
["X","COLAVECCHIA","TONI","166 NADINE DR NEW CASTLE PA 16101","YES",null,"FHC",null,null,261,1,null,null,261,1,null,null,null,null,null,null,null,null,null,null,null,null,null,null,null,null,"MBO"]
[10,"Blackmon","Katlyn","2248 Zimmerly Rd Erie PA 16506","YES","YES","FHC",187,1,249,2,null,null,436,3,null,null,null,null,null,null,null,null,null,null,null,null,null,null,null,null,"MBR"]
[11,"John ","Shawn","5770 RT. 60 Sinclairville N.Y 14782","YES",null,"FHC",239,0,null,null,null,null,239,0,null,null,null,null,null,null,null,null,null,null,null,null,null,null,null,null,"MCBH"]
[12,"THOMPSON","RICKIE","11157 ALDER CT NORTH EAST PA 16428",null,null,"HC",null,null,327,27,null,null,327,27,null,null,null,null,null,null,null,null,null,null,null,null,null,null,null,null,"MHC"]
[13,"Buck","Eric","38 1/2 Gibson Street, North East PA 16428","YES",null,"hc",307,17,322,22,null,null,629,39,null,null,null,null,null,null,null,null,null,null,null,null,null,null,null,null,"MSR"]
[14,"Cornell","Tim","37378 Parker Hill Rd Centerville PA 16404","YES","YES","hC",295,11,313,15,null,null,608,26,null,null,null,null,null,null,null,null,null,null,null,null,null,null,null,null,"PMR"]
[15,"Kightlinger","Brian","21815 Zimmerman road Venango Pa 16440","YES","YES","HC",288,6,313,15,null,null,601,21,null,null,null,null,null,null,null,null,null,null,null,null,null,null,null,null,"PRF"]
[16,"Miller","Mike","12086 Route 89 Wattsburg 16442","YES","YES","HC",295,5,311,13,null,null,606,18,null,null,null,null,null,null,null,null,null,null,null,null,null,null,null,null,"PSR"]
[17,"MATHERS","JAMES","2944 EISENHOWER RD",null,null,"HC",null,null,311,11,null,null,311,11,null,null,null,null,null,null,null,null,null,null,null,null,null,null,null,null,"SHC"]
[18,"Saksa","Andrew","1600 Lenox New lyme road, Jefferson OH 44047","YES","YES","HC",295,11,306,12,null,null,601,23,null,null,null,null,null,null,null,null,null,null,null,null,null,null,null,null,"SMC"]
[19,"Maring","Rob","10347 bennett rd erie pa 16510","yes",null,"HC",283,6,293,12,null,null,576,18,null,null,null,null,null,null,null,null,null,null,null,null,null,null,null,null,"SPM"]
[20,"WIMER","DAVID","131 YOUNG LN BEAVER FALLS  PA 15010","YES",null,"HC",null,null,290,5,null,null,290,5,null,null,null,null,null,null,null,null,null,null,null,null,null,null,null,null,"TRD"]
[21,"Minich","Doug ","935 w 5 th st erie pa 16507","YES",null,"HC",273,5,287,7,null,null,560,12,null,null,null,null,null,null,null,null,null,null,null,null,null,null,null,null,"X-BOW"]
[22,"KISH","BRIAN","811 HAZLETT AVE  BRACKENRIDGE  PA 15014","YES",null,"HC",null,null,274,7,null,null,274,7,null,null,null,null,null,null,null,null,null,null,null,null,null,null,null,null,"YH"]
[23,"PETTIGREW","DARIAN","9460 WESTLAKE RD LAKE CITY PA 16423","YES",null,"HC",null,null,246,2,null,null,246,2,null,null,null,null,null,null,null,null,null,null,null,null,null,null,null,null,"YMR 13-14"]
[24,"PETTIGREW","DAG","12619 WEST LAKE RD E SPRINGFIELD PA 16411","yes",null,"HC",null,null,245,3,null,null,245,3,null,null,null,null,null,null,null,null,null,null,null,null,null,null,null,null,"YMR 15-17"]
[25,"PETTIGREW","DEAN","7407 E MAIN ST FAIRVIEW PA 16415","YES",null,"HC",null,null,227,4,null,null,227,4]
[26,"Acklin","Evan","470 Orchard road Jamestwon NY 14701","YES",null,"hc",294,10,null,null,null,null,294,10]
[27,"John","Larry","5770 RT. 60 Sinclairville N.Y 14782","YES",null,"HC",286,4,null,null,null,null,286,4]
[28,"Boyd","Jon","6049 Garries Rd, Erie PA 16506","YES",null,"HC",283,9,null,null,null,null,283,9]
[29,"Letson","Eric","300 Main Street, Randolph NY 14772","YES",null,"hc",236,11,null,null,null,null,236,11]
[30,"Gordon","Steve ","31 Grahamville st North east Pa 16428","YES",null,"HC",null,null,null,null,null,null,0,0]
[31,"HILER","WILLIAM 3","632 PALO ALTO DR ELLWOOD CITY PA 16117","YES",null,"MBO",null,null,277,9,null,null,277,9]
[32,"Cunningham","Owen","222 Lake road, Ashtabula OH 44004","YES","YES","MBO",268,8,262,4,null,null,{"$f":"SUM(H39,J39,L39)","v":530},{"$f":"SUM(I39,K39,M39)","v":12}]
[33,"Sperry","George","3212 Holmes St Erie PA 16504","YES",null,"mbo",233,5,237,3,null,null,470,8]
[34,"Livak","Jim","p.o. box 86, Dewittville NY 14728","YES","YES","mbo",288,8,null,null,null,null,288,8]
[35,"Bennett","Jeff","129 Browntown rd, Harrisville PA 16038","YES","YES","mbo",268,8,null,null,null,null,268,8]
[36,"Thomas","Adam","6193 Atlantic Lake Rd, Hartstown PA 16131","YES","YES","mbo",241,5,null,null,null,null,241,5]
[37,"Miller","Adam","5827 Conewango Ave Warren PA 16365","YES",null,"mbo",205,1,null,null,null,null,205,1]
[38,"Saksa","Tom","p.o box 391 Jefferson oh 44047","YES","YES","MBR",276,9,289,13,null,null,565,22]
[39,"Blackmon","Brad","2248 Zimmerly Rd Erie PA 16506","YES","YES","mbr",222,3,273,6,null,null,495,9]
[40,"Hess","EJ","2280 Greenlee rd Waterford pa 16441","YES","YES","MBR",260,6,251,7,null,null,511,13]
[41,"Lauffenburger","Ken","10503 Pleasant Dr. Warren Pa 16536","YES","YES","MCBH",270,6,295,11,null,null,565,17]
[42,"Johnson","Craig ","16 Valley View Dr. Warren pa 16536","YES","YES","MCBH",270,5,288,5,null,null,558,10]
[43,"Mulligan","Paul","4580 Old State Route 77 Corry PA 16407","YES","YES","MCBH",38,0,null,null,null,null,38,0]
[44,"Bower","Ron ","po box 177 steamburg  ny 14783","YES",null,"MHC",null,null,191,null,null,null,191,0]
[45,"Macro","Frank","6320 Stonebrook Dr Fairview PA 16415","YES",null,"MHC",243,4,null,null,null,null,243,4]
[46,"Acklin","Craig ","470 Orchard road Jamestwon NY 14701","YES","YES","msr",286,6,277,3,null,null,563,9]
[47,"Brundage ","Martin","7030 Route 426 Corry PA 16407","YES","YES","MSR",258,6,275,6,null,null,533,12]
[48,"Petransky ","Bill","456 Sandberg Rd Frewsburg Ny 14738","YES","YES","MSR",261,5,null,null,null,null,261,5]
[49,"Gallotta ","Jeff","2368 Priest Hollow Rd Russell PA 16345","YES",null,"msr",211,1,null,null,null,null,211,1]
[50,"Wisniewski","Dave ","10253 Station Rd North East PA 16428","YES","YES","msr",null,null,null,null,null,null,0,0]
[51,"Miller","Henry","1415 west 35th st erie pa 16508","YES",null,"SHC",283,6,310,16,null,null,593,22]
[52,"Kiendl","Bill","3900 Bellview Rd Bemus Pt Ny 14712","YES","YES","SHC",290,10,306,10,null,null,596,20]
[53,"Pierce Sr","Bennett V.","9776 upper Edge, little Valley NY 14755","YES",null,"SHC",289,12,304,10,null,null,593,22]
[54,"Prody","Thomas ","331 Ausel rd Oil City pa 16301","YES",null,"SHC",284,8,292,9,null,null,576,17]
[55,"WILSON","STEPHEN","717 OLD ASH RD MERCER PA 16137","YES",null,"SHC",null,null,290,5,null,null,290,5]
[56,"PALUH","JIM","7601 FRANKLIN RD GIRARD PA 16417","YES",null,"SHC",null,null,275,6,null,null,275,6]
[57,"Ott","Don","P.O Box 718 Harmonsburg road Linesville Pa 16424","YES",null,"SHC",238,3,254,4,null,null,492,7]
[58,"Luce","Dave ","39186 Mt Pleasant Rd Spartansburg pa 16438","YES",null,"SHC",270,8,null,null,null,null,270,8]
[59,"Crampton","Dave ","2306 Wheater Rd Collin, NY 14034","YES",null,"SHC",266,3,null,null,null,null,266,3]
[60,"Gordon","Howard ","116 Gibson st North East Pa 16428","YES",null,"SHC",237,1,null,null,null,null,237,1]
[61,"Kalie Sr","Dave ","5315 west lake rd erie pa 16505","YES",null,"SHC",211,2,null,null,null,null,211,2]
[62,"Nollinger","Dick","12335 Archer Rd North East PA 16428","YES",null,"smc",272,6,286,9,null,null,558,15]
[63,"FAZIO","JOSEPH","719 BLAINE ST NEW CASTLE PA 16101","YES",null,"SPM",null,null,311,13,null,null,311,13]
[64,"Vandervalgen","Jacob","8550 Wattsburg road Erie Pa 16509","YES","YES","SPM",270,6,291,3,null,null,561,9]
[65," Farley","Josh","11311 Donation road Waterford Pa 16441","YES","YES","SPM",282,11,284,6,null,null,566,17]
[66,"JAQUITH","ANDY","749 SHADY AVE CORRY PA 16407","YES",null,"SPM",null,null,279,4,null,null,279,4]
[67,"f","X","X","X","X","X","X","X","X","X","X","X","X","X"]
[68,"Letson","Michael","300 Main Street, Randolph NY 14772","YES",null,"yh",262,8,302,10,null,null,{"$f":"SUM(H75,J75,L75)","v":564},{"$f":"SUM(I75,K75,M75)","v":18}]
[69,"Pierce Jr","Bennett V.","9776 upper Edge, little Valley NY 14755","YES",null,"YH",248,11,270,2,null,null,518,13]
[70,"rajecki","brad","2280 Greenlee rd Waterford pa 16441","yes",null,"YMR 15-17",273,2,null,null,null,null,273,2]
[71,"Thomas","Austin","6193 Atlantic Lake Rd, Hartstown PA 16131","YES",null,"YMR 15-17",216,1,null,null,null,null,216,1]
[72,"Garde","RJ","5435 Wallace Dr, Edinboro PA 16412","YES",null,"YMR 15-17",65,0,null,null,null,null,65,0]
[73,"LIVAK","JIM","PO BOX 86 ","YES",null,"psr",null,null,300,11,null,null,300,11]
[74,null,null,null,null,null,null,null,null,null,null,null,null,0,0]
[75,null,null,null,null,null,null,null,null,null,null,null,null,0,0]
[76,null,null,null,null,null,null,null,null,null,null,null,null,0,0]
[77,null,null,null,null,null,null,null,null,null,null,null,null,0,0]
[78,null,null,null,null,null,null,null,null,null,null,null,null,0,0]
[79,null,null,null,null,null,null,null,null,null,null,null,null,0,0]
[80,null,null,null,null,null,null,null,null,null,null,null,null,0,0]
[81,null,null,null,null,null,null,null,null,null,null,null,null,0,0]
[82,null,null,null,null,null,null,null,null,null,null,null,null,0,0]
[83,null,null,null,null,null,null,null,null,null,null,null,null,0,0]
[84,null,null,null,null,null,null,null,null,null,null,null,null,0,0]
[85,null,null,null,null,null,null,null,null,null,null,null,null,0,0]
[86,null,null,null,null,null,null,null,null,null,null,null,null,0,0]
[87,null,null,null,null,null,null,null,null,null,null,null,null,0,0]
[88,null,null,null,null,null,null,null,null,null,null,null,null,0,0]
[89,null,null,null,null,null,null,null,null,null,null,null,null,0,0]
[90,null,null,null,null,null,null,null,null,null,null,null,null,0,0]
[91,null,null,null,null,null,null,null,null,null,null,null,null,0,0]
[92,null,null,null,null,null,null,null,null,null,null,null,null,0,0]
[93,null,null,null,null,null,null,null,null,null,null,null,null,0,0]
[94,null,null,null,null,null,null,null,null,null,null,null,null,0,0]
[95,null,null,null,null,null,null,null,null,null,null,null,null,0,0]
[96,null,null,null,null,null,null,null,null,null,null,null,null,0,0]
[97,null,null,null,null,null,null,null,null,null,null,null,null,0,0]
[98,null,null,null,null,null,null,null,null,null,null,null,null,0,0]
[99,null,null,null,null,null,null,null,null,null,null,null,null,0,0]
[100,null,null,null,null,null,null,null,null,null,null,null,null,{"$f":"SUM(H107,J107,L107)","v":0},{"$f":"SUM(I107,K107,M107)","v":0}]
[101,null,null,null,null,null,null,null,null,null,null,null,null,0,0]
[102,null,null,null,null,null,null,null,null,null,null,null,null,0,0]
[103,null,null,null,null,null,null,null,null,null,null,null,null,0,0]
[104,null,null,null,null,null,null,null,null,null,null,null,null,0,0]
[105,null,null,null,null,null,null,null,null,null,null,null,null,0,0]
[106,null,null,null,null,null,null,null,null,null,null,null,null,0,0]
[107,null,null,null,null,null,null,null,null,null,null,null,null,0,0]
[108,null,null,null,null,null,null,null,null,null,null,null,null,0,0]
[109,null,null,null,null,null,null,null,null,null,null,null,null,0,0]
[110,null,null,null,null,null,null,null,null,null,null,null,null,0,0]
[111,null,null,null,null,null,null,null,null,null,null,null,null,0,0]
[112,null,null,null,null,null,null,null,null,null,null,null,null,0,0]
[113,null,null,null,null,null,null,null,null,null,null,null,null,0,0]
[114,null,null,null,null,null,null,null,null,null,null,null,null,0,0]
[115,null,null,null,null,null,null,null,null,null,null,null,null,0,0]
[116,null,null,null,null,null,null,null,null,null,null,null,null,0,0]
[117,null,null,null,null,null,null,null,null,null,null,null,null,0,0]
[118,null,null,null,null,null,null,null,null,null,null,null,null,0,0]
[119,null,null,null,null,null,null,null,null,null,null,null,null,0,0]
[120,null,null,null,null,null,null,null,null,null,null,null,null,0,0]
[121,null,null,null,null,null,null,null,null,null,null,null,null,0,0]
[122,null,null,null,null,null,null,null,null,null,null,null,null,0,0]
[123,null,null,null,null,null,null,null,null,null,null,null,null,0,0]
[124,null,null,null,null,null,null,null,null,null,null,null,null,0,0]
[125,null,null,null,null,null,null,null,null,null,null,null,null,0,0]
[126,null,null,null,null,null,null,null,null,null,null,null,null,0,0]
[127,null,null,null,null,null,null,null,null,null,null,null,null,0,0]
[128,null,null,null,null,null,null,null,null,null,null,null,null,0,0]
[129,null,null,null,null,null,null,null,null,null,null,null,null,0,0]
[130,null,null,null,null,null,null,null,null,null,null,null,null,0,0]
[131,null,null,null,null,null,null,null,null,null,null,null,null,0,0]
[132,null,null,null,null,null,null,null,null,null,null,null,null,{"$f":"SUM(H139,J139,L139)","v":0},{"$f":"SUM(I139,K139,M139)","v":0}]
[133,null,null,null,null,null,null,null,null,null,null,null,null,0,0]
[134,null,null,null,null,null,null,null,null,null,null,null,null,0,0]
[135,null,null,null,null,null,null,null,null,null,null,null,null,0,0]
[136,null,null,null,null,null,null,null,null,null,null,null,null,0,0]
[137,null,null,null,null,null,null,null,null,null,null,null,null,0,0]
[138,null,null,null,null,null,null,null,null,null,null,null,null,0,0]
[139,null,null,null,null,null,null,null,null,null,null,null,null,0,0]
[140,null,null,null,null,null,null,null,null,null,null,null,null,0,0]
[141,null,null,null,null,null,null,null,null,null,null,null,null,0,0]
[142,null,null,null,null,null,null,null,null,null,null,null,null,0,0]
[143,null,null,null,null,null,null,null,null,null,null,null,null,0,0]
[144,null,null,null,null,null,null,null,null,null,null,null,null,0,0]
[145,null,null,null,null,null,null,null,null,null,null,null,null,0,0]
[146,null,null,null,null,null,null,null,null,null,null,null,null,0,0]
[147,null,null,null,null,null,null,null,null,null,null,null,null,0,0]
[148,null,null,null,null,null,null,null,null,null,null,null,null,0,0]
[149,null,null,null,null,null,null,null,null,null,null,null,null,0,0]
[150,null,null,null,null,null,null,null,null,null,null,null,null,0,0]
[151,null,null,null,null,null,null,null,null,null,null,null,null,0,0]
[152,null,null,null,null,null,null,null,null,null,null,null,null,0,0]
[153,null,null,null,null,null,null,null,null,null,null,null,null,0,0]
[154,null,null,null,null,null,null,null,null,null,null,null,null,0,0]
[155,null,null,null,null,null,null,null,null,null,null,null,null,0,0]
[156,null,null,null,null,null,null,null,null,null,null,null,null,0,0]
[157,null,null,null,null,null,null,null,null,null,null,null,null,0,0]
[158,null,null,null,null,null,null,null,null,null,null,null,null,0,0]
[159,null,null,null,null,null,null,null,null,null,null,null,null,0,0]
[160,null,null,null,null,null,null,null,null,null,null,null,null,0,0]
[161,null,null,null,null,null,null,null,null,null,null,null,null,0,0]
[162,null,null,null,null,null,null,null,null,null,null,null,null,0,0]
[163,null,null,null,null,null,null,null,null,null,null,null,null,0,0]
[164,null,null,null,null,null,null,null,null,null,null,null,null,{"$f":"SUM(H171,J171,L171)","v":0},{"$f":"SUM(I171,K171,M171)","v":0}]
[165,null,null,null,null,null,null,null,null,null,null,null,null,0,0]
[166,null,null,null,null,null,null,null,null,null,null,null,null,0,0]
[167,null,null,null,null,null,null,null,null,null,null,null,null,0,0]
[168,null,null,null,null,null,null,null,null,null,null,null,null,0,0]
[169,null,null,null,null,null,null,null,null,null,null,null,null,0,0]
[170,null,null,null,null,null,null,null,null,null,null,null,null,0,0]
[171,null,null,null,null,null,null,null,null,null,null,null,null,0,0]
[172,null,null,null,null,null,null,null,null,null,null,null,null,0,0]
[173,null,null,null,null,null,null,null,null,null,null,null,null,0,0]
[174,null,null,null,null,null,null,null,null,null,null,null,null,0,0]
[175,null,null,null,null,null,null,null,null,null,null,null,null,0,0]
[176,null,null,null,null,null,null,null,null,null,null,null,null,0,0]
[177,null,null,null,null,null,null,null,null,null,null,null,null,0,0]
[178,null,null,null,null,null,null,null,null,null,null,null,null,0,0]
[179,null,null,null,null,null,null,null,null,null,null,null,null,0,0]
[180,null,null,null,null,null,null,null,null,null,null,null,null,0,0]
[181,null,null,null,null,null,null,null,null,null,null,null,null,0,0]
[182,null,null,null,null,null,null,null,null,null,null,null,null,0,0]
[183,null,null,null,null,null,null,null,null,null,null,null,null,0,0]
[184,null,null,null,null,null,null,null,null,null,null,null,null,0,0]
[185,null,null,null,null,null,null,null,null,null,null,null,null,0,0]
[186,null,null,null,null,null,null,null,null,null,null,null,null,0,0]
[187,null,null,null,null,null,null,null,null,null,null,null,null,0,0]
[188,null,null,null,null,null,null,null,null,null,null,null,null,0,0]
[189,null,null,null,null,null,null,null,null,null,null,null,null,0,0]
[190,null,null,null,null,null,null,null,null,null,null,null,null,0,0]
[191,null,null,null,null,null,null,null,null,null,null,null,null,0,0]
[192,null,null,null,null,null,null,null,null,null,null,null,null,0,0]
[193,null,null,null,null,null,null,null,null,null,null,null,null,0,0]
[194,null,null,null,null,null,null,null,null,null,null,null,null,0,0]
[195,null,null,null,null,null,null,null,null,null,null,null,null,0,0]
[196,null,null,null,null,null,null,null,null,null,null,null,null,0,0]
[197,null,null,null,null,null,null,null,null,null,null,null,null,0,0]
[198,null,null,null,null,null,null,null,null,null,null,null,null,0,0]
[199,null,null,null,null,null,null,null,null,null,null,null,null,0,0]
[200,null,null,null,null,null,null,null,null,null,null,null,null,{"$f":"SUM(H207,J207,L207)","v":0},{"$f":"SUM(I207,K207,M207)","v":0}]